[Event "German Bundesliga 2024-25"]
[Site "Germany"]
[Date "2024.12.01"]
[Round "4.8"]
[White "Jahncke, Giso"]
[Black "Tica, Sven"]
[Result "1/2-1/2"]
[Annotator "TA"]
[ECO "A17"]
[WhiteElo "2226"]
[BlackElo "2428"]
[PlyCount "108"]
[EventDate "2024.09.27"]
[EventType "team-tourn"]
[EventCountry "GER"]
[SourceTitle "playchess.com"]
[Source "ChessBase"]
[SourceQuality "1"]
[WhiteTeam "St. Pauli"]
[BlackTeam "Heimbach-Weis-Neuwied"]
[TimeControl "40/5400+30:1800+30"]

{[%evp 9,108,15,14,5,17,0,0,0,0,-8,-5,-10,-8,-16,-10,-18,-14,-46,-36,-43,-16,-33,-16,-29,-24,-52,-10,-31,-28,-29,-27,-27,-19,-31,-39,-35,-30,-27,-12,-61,0,-55,-45,-68,-29,-72,0,-51,-2,-25,-27,-15,-32,-48,-40,-120,-77,-67,-72,-79,-63,-69,-72,-98,-98,-91,-91,-99,-84,-90,-82,-77,-80,-114,-111,-98,-64,-79,-8,-6,-10,0,0,0,0,-69,-76,-189,-182,-177,-222,-344,-41,-43,-43,-44,0,-44,0,-65,0]} 1. c4 {[%emt 0:00:03]} e6 {[%emt 0:00:08]} 2. Nf3 {[%emt 0:00:05]} d5 {[%emt 0:00:06]} 3. e3 {[%emt 0:00:04]} Nf6 {[%emt 0:03:07]} 4. Nc3 {[%emt 0:00:09]} a6 {[%emt 0:01:34]} 5. b3 {[%emt 0:00:41]} Bd6 {[%emt 0:02:46]} 6. Bb2 {[%emt 0:00:29]} O-O {[%emt 0:01:07]} 7. Be2 {[%emt 0:00:46]} b6 {[%emt 0:03:24]} 8. cxd5 {[%emt 0:02:33] The position is equal.} exd5 {[%emt 0:00:20]} 9. O-O {[%emt 0:01:41]} Bb7 {[%emt 0:02:52]} 10. Qc2 {[%emt 0:07:57]} Nbd7 {[%emt 0:05:28]} 11. Rfe1 {[%emt 0:17:40]} Re8 {[%emt 0:05:23]} 12. Bf1 {[%emt 0:03:51]} Rc8 {[%emt 0:11:52]} 13. Ne2 {[%emt 0:01:53]} c5 {[%emt 0:05:43][%cal Od5d4]} 14. Qf5 {[%emt 0:03:20]} Qe7 {[%emt 0:03:33]} 15. Rac1 {[%emt 0:07:10]} Qe4 {[%emt 0:06:20]} 16. Qh3 {[%emt 0:02:42]} Qe6 {[%emt 0:02:07]} 17. Qh4 {[%emt 0:01:29]} (17. Qxe6 {simplifies} fxe6 18. d3 e5 19. Nd2) 17... Qg4 {[%emt 0:07:51]} 18. Ng3 {[%emt 0:11:28]} Qxh4 {[%emt 0:06:10]} 19. Nxh4 {[%emt 0:00:04]} b5 {[%emt 0:00:50]} 20. d3 {[%emt 0:07:03]} g6 {[%emt 0:02:29]} 21. Nf3 {[%emt 0:00:15]} Ng4 {[%emt 0:02:48]} 22. Be2 {[%emt 0:03:39]} f5 {[%emt 0:03:41]} 23. Nf1 {[%emt 0:02:06]} Ngf6 {[%emt 0:01:50]} 24. h3 {[%emt 0:08:15]} (24. N1d2 $11) 24... Re7 {[%emt 0:03:44]} (24... f4 $15) 25. Bd1 {[%emt 0:06:37]} (25. N1d2 $11) 25... Rce8 $15 {[%emt 0:02:04]} 26. Bc2 {[%emt 0:00:23]} Bc7 {[%emt 0:04:43]} 27. Bb1 {[%emt 0:04:23]} Bd6 {[%emt 0:02:01]} (27... Ba5 $17 28. Red1 d4 29. exd4 Re2) 28. a3 {[%emt 0:02:22]} (28. Bc2 $11) 28... h6 {[%emt 0:04:31]} (28... f4 $15) 29. Nh4 {[%emt 0:01:20]} Kf7 {[%emt 0:00:42][%cal Od5d4]} 30. Red1 {[%emt 0:00:48]} a5 {[%emt 0:02:51][%cal Od5d4]} 31. d4 {[%emt 0:02:48]} c4 {[%emt 0:00:22]} 32. g4 {[%emt 0:00:04]} Rg8 {[%emt 0:00:49]} 33. gxf5 {[%emt 0:00:25]} gxf5+ {[%emt 0:00:28]} 34. Kh1 {[%emt 0:00:32]} Ne4 {[%emt 0:00:47]} (34... cxb3 35. Nxf5 (35. Bxf5 $2 Nb6 $19) 35... Ke6 36. Nxh6 $18) 35. Bxe4 {[%emt 0:01:17]} fxe4 {[%emt 0:00:06]} 36. bxc4 {[%emt 0:01:04]} bxc4 {[%emt 0:01:02]} (36... dxc4 37. Nf5 Re6 38. a4 $11) 37. Nf5 {[%emt 0:00:44][%csl LRd6,LRe7,LRh6]} Re6 {[%emt 0:00:02][%cal Be7e6,Be6d6,Bd6f6][%mdl 32] ...Bc7 would now be deadly.} 38. Nxd6+ {[%emt 0:00:24]} Rxd6 {[%emt 0:00:01]} 39. Bc3 {[%emt 0:00:37][%cal Oc1b1] White is weak on the light squares} Rf6 {[%emt 0:01:27]} 40. Nh2 {[%emt 0:00:33]} h5 {[%emt 0:01:45] Wards off Ng4} (40... Rxf2 $6 41. Ng4 (41. Bxa5 Nf6 $17) 41... Rxg4 42. hxg4 $14) 41. Rf1 {[%emt 0:08:43]} a4 {[%emt 0:06:58]} 42. f3 {[%emt 0:09:17]} Ke6 {[%emt 0:02:33]} 43. fxe4 {[%emt 0:00:58]} Rxf1+ {[%emt 0:02:58]} ({Better is} 43... Rg3 $17 44. e5 Rfg6) 44. Nxf1 $11 {[%emt 0:01:41]} dxe4 {[%emt 0:03:15]} 45. Be1 {[%emt 0:03:45]} Ba6 {[%emt 0:06:56]} 46. Ng3 {[%emt 0:01:30]} Rb8 {[%emt 0:01:09]} 47. Bb4 {[%emt 0:02:08]} (47. Nxe4 $2 Bb7 48. d5+ Bxd5 $19 (48... Kxd5 49. Nc3+ Ke6+ 50. Kg1 $17)) (47. d5+ $11 Kxd5 48. Rd1+ Kc6 49. Nf5) 47... Nf6 $15 {[%emt 0:00:23]} 48. Kh2 {[%emt 0:02:28] [#]} (48. h4 $17) 48... h4 $1 $19 {[%emt 0:02:49]} 49. Ne2 {[%emt 0:00:08]} Nd5 {[%emt 0:00:24][%csl LRb4,LRe3]} 50. Rg1 {[%emt 0:01:40]} (50. Nf4+ $142 Nxf4 51. exf4) 50... Kf6 $2 {[%emt 0:02:01]} (50... Nxe3 51. Rg6+ Kd7 52. Rd6+ (52. Rxa6 Rg8 $18) 52... Kc7 53. Rxa6 $18) ({Black should play} 50... Nxb4 $19 51. axb4 Rxb4) 51. Rf1+ $15 {[%emt 0:01:20]} Kg7 {[%emt 0:00:38]} 52. Rg1+ {[%emt 0:01:31]} Kf6 {[%emt 0:01:02]} 53. Rf1+ {[%emt 0:00:07]} Kg7 {[%emt 0:00:05]} 54. Rg1+ {[%emt 0:00:06]} Kf6 {[%emt 0:04:32] Weighted Error Value: White=0.21 (precise) /Black=0.23 (precise) .  Missed win:     	---       	Black=1      Mistake:       	White=7     	Black=5      Inaccurate:     	White=5     	Black=5      OK:         	White=15    	Black=14     Best:        	White=6     	Black=3      Strong:       	---       	Black=1} (54... Kh6 $15 55. Rg4 Nxb4 (55... Nxe3 $2 {loses.} 56. Bd2 $18) 56. Rxh4+ Kg7 57. Rg4+ Kf7 58. axb4 Rxb4) 1/2-1/2

[Event "German Bundesliga 2024-25"]
[Site "Germany"]
[Date "2024.12.01"]
[Round "4.9"]
[White "Vachier-Lagrave, Maxime"]
[Black "Nguyen, Thai Dai Van"]
[Result "1/2-1/2"]
[Annotator "TA"]
[ECO "C78"]
[WhiteElo "2737"]
[BlackElo "2670"]
[PlyCount "42"]
[EventDate "2024.09.27"]
[EventType "team-tourn"]
[EventCountry "GER"]
[SourceTitle "playchess.com"]
[Source "ChessBase"]
[SourceQuality "1"]
[WhiteTeam "Baden-Baden"]
[BlackTeam "TU Dresden"]
[TimeControl "40/5400+30:1800+30"]

{[%evp 13,42,39,51,29,29,27,19,18,21,9,21,22,75,71,78,-5,0,0,0,0,0,-5,0,-6,0,0,0,-18,-24,-16,-22]} 1. e4 {[%emt 0:00:04]} e5 {[%emt 0:01:39]} 2. Nf3 {[%emt 0:00:11]} Nc6 {[%emt 0:00:05]} 3. Bb5 {[%emt 0:00:03]} a6 {[%emt 0:00:30]} 4. Ba4 {[%emt 0:00:05]} Nf6 {[%emt 0:00:09]} 5. O-O {[%emt 0:00:04]} Bc5 {[%emt 0:00:06]} 6. c3 {[%emt 0:00:07]} O-O {[%emt 0:00:10]} 7. d4 {[%emt 0:00:03]} Ba7 {[%emt 0:00:05]} 8. dxe5 {[%emt 0:00:07] And now Bxc6 would win.} Nxe4 {[%emt 0:00:06]} 9. Qd5 {[%emt 0:00:04]} Nc5 {[%emt 0:00:08]} 10. Bc2 {[%emt 0:00:03]} Ne7 {[%emt 0:00:11]} 11. Qd4 {[%emt 0:00:03]} d6 {[%emt 0:55:16]} 12. Bg5 {[%emt 0:01:40]} h6 {[%emt 0:00:13] [#]} (12... Qd7 $11) 13. Qh4 $1 $16 {[%emt 0:01:20] White is much more active. The black rooks are passive.} Re8 {[%emt 0:00:06] [#]} 14. Bxe7 {[%emt 0:35:05]} (14. Nbd2 $1 $16) 14... Qxe7 $11 {[%emt 0:01:58]} 15. Qxe7 {[%emt 0:01:12]} Rxe7 {[%emt 0:00:06]} 16. exd6 {[%emt 0:00:04]} cxd6 {[%emt 0:00:12]} 17. Nbd2 {[%emt 0:00:05]} Bd7 {[%emt 0:03:49]} 18. Rfe1 {[%emt 0:05:31]} Rae8 {[%emt 0:01:54]} 19. Rxe7 {[%emt 0:00:08]} Rxe7 {[%emt 0:00:04]} 20. Re1 {[%emt 0:00:23]} Rxe1+ {[%emt 0:01:15]} 21. Nxe1 {[%emt 0:00:08]} Kf8 {[%emt 0:01:27] Weighted Error Value: White=0.13 (very precise) /Black=0.12 (very precise) .  Mistake:       	White=1     	Black=1      OK:         	White=6     	Black=5      Best:        	---       	Black=1      Strong:       	White=1     	---} 1/2-1/2

[Event "German Bundesliga 2024-25"]
[Site "Germany"]
[Date "2024.12.01"]
[Round "4.9"]
[White "Sarana, Alexey"]
[Black "Ivic, Velimir"]
[Result "1-0"]
[Annotator "TA"]
[ECO "D90"]
[WhiteElo "2679"]
[BlackElo "2622"]
[PlyCount "118"]
[EventDate "2024.09.27"]
[EventType "team-tourn"]
[EventCountry "GER"]
[SourceTitle "playchess.com"]
[Source "ChessBase"]
[SourceQuality "1"]
[WhiteTeam "Viernheim"]
[BlackTeam "Werder Bremen"]
[TimeControl "40/5400+30:1800+30"]

{[%evp 47,118,13,17,0,50,56,48,49,74,54,79,77,78,74,64,72,67,66,105,105,112,112,161,141,214,173,227,228,215,220,416,450,543,533,594,595,600,614,683,585,638,552,721,674,695,688,700,695,736,660,783,759,1750,1700,1285,981,674,731,29974,1100,29968,692,693,570,5712,5043,29976,29978,29977,29979,29979,29980,29979]} 1. d4 {[%emt 0:00:01]} Nf6 {[%emt 0:00:11]} 2. c4 {[%emt 0:00:06]} g6 {[%emt 0:00:05]} 3. Nc3 {[%emt 0:00:57]} d5 {[%emt 0:00:24]} 4. Nf3 {[%emt 0:00:49]} Bg7 {[%emt 0:00:14]} 5. e3 {[%emt 0:01:52]} O-O {[%emt 0:00:40]} 6. cxd5 {[%emt 0:00:16]} Nxd5 {[%emt 0:00:05]} 7. Be2 {[%emt 0:00:07]} c5 {[%emt 0:03:44]} 8. Qb3 {[%emt 0:00:16]} Nxc3 {[%emt 0:33:09]} 9. bxc3 {[%emt 0:00:45]} Nc6 {[%emt 0:00:19]} 10. O-O {[%emt 0:00:29]} Qc7 {[%emt 0:00:32]} 11. Ba3 {[%emt 0:00:49] D90: Grünfeld: 4 Nf3 Bg7 sidelines.} b6 {[%emt 0:00:36]} 12. dxc5 {[%emt 0:01:48]} Be6 {[%emt 0:14:35]} 13. Qa4 $146 {[%emt 0:01:50]} ({Predecessor:} 13. Qb2 bxc5 14. Bxc5 Qa5 15. Qa3 Qxc3 16. Qxc3 Bxc3 17. Rac1 Bb2 18. Rc2 Rab8 19. Nd4 Bxd4 20. exd4 Bd5 {½-½ Diaz Velandia,J (2345)-Alonso Garcia,R (2358) San Sebastian Gros op 27th 2017 (6)}) 13... Bd7 {[%emt 0:04:21]} 14. Qh4 {[%emt 0:32:21]} Bf6 {[%emt 0:00:26]} 15. Qg3 {[%emt 0:01:08]} Qxg3 {[%emt 0:02:41]} 16. hxg3 {[%emt 0:00:38]} Rfc8 {[%emt 0:05:55]} 17. Rfd1 {[%emt 0:09:55]} Bg4 {[%emt 0:02:03]} 18. Rac1 {[%emt 0:00:47]} Na5 {[%emt 0:01:25]} 19. Bb4 {[%emt 0:03:09]} Nb7 {[%emt 0:01:55]} 20. cxb6 {[%emt 0:03:01]} axb6 {[%emt 0:00:05]} 21. a3 {[%emt 0:00:09]} Na5 {[%emt 0:03:22]} 22. Nd4 {[%emt 0:03:53]} Bxe2 {[%emt 0:00:18]} 23. Nxe2 {[%emt 0:00:02]} Nc4 {[%emt 0:01:40]} 24. Ra1 {[%emt 0:00:05]} h5 {[%emt 0:02:56]} 25. Rd7 {[%emt 0:04:55]} e6 {[%emt 0:02:16]} ({Better is} 25... e5 $11) 26. Nd4 $14 {[%emt 0:01:01]} Rd8 {[%emt 0:01:34]} 27. Rc7 {[%emt 0:02:53]} Rdc8 {[%emt 0:00:11]} 28. Rb7 {[%emt 0:01:04]} Rcb8 {[%emt 0:00:52]} 29. Rxb8+ {[%emt 0:01:27]} Rxb8 {[%emt 0:00:01]} 30. Kf1 {[%emt 0:00:36]} e5 {[%emt 0:04:05]} 31. Nb3 {[%emt 0:01:14]} e4 {[%emt 0:02:25]} 32. Ke2 {[%emt 0:00:20]} Rc8 {[%emt 0:01:54]} 33. Nd2 {[%emt 0:04:09]} Nxd2 {[%emt 0:00:14]} 34. Kxd2 {[%emt 0:00:02]} Kg7 {[%emt 0:06:54] [#]} (34... g5 $16 35. Kc2 h4) 35. Kc2 $1 $18 {[%emt 0:02:23]} Rh8 {[%emt 0:02:15]} (35... h4 $16) 36. a4 {[%emt 0:09:38]} Be5 {[%emt 0:00:16]} (36... Ra8 $142 37. a5 Ra6) 37. Rd1 $18 {[%emt 0:03:30]} Kf6 {[%emt 0:01:51]} 38. Rd7 {[%emt 0:01:20]} h4 $2 {[%emt 0:01:11]} (38... Rc8 {was worth a try.} 39. Kb3 g5) 39. gxh4 $18 {[%emt 0:00:33]} Rxh4 {[%emt 0:00:46]} 40. Rb7 {[%emt 0:00:11]} Rh2 {[%emt 0:00:22]} 41. Rxb6+ {[%emt 0:30:04]} Kf5 {[%emt 0:30:08]} 42. a5 {[%emt 0:00:17]} Rxg2 {[%emt 0:00:09]} 43. a6 {[%emt 0:00:04]} Rxf2+ {[%emt 0:00:10]} 44. Kb3 {[%emt 0:00:04]} Rd2 {[%emt 0:00:00]} 45. Rb7 {[%emt 0:00:00]} f6 {[%emt 0:00:00]} 46. a7 {[%emt 0:00:00]} Rd8 {[%emt 0:00:00]} 47. Rf7 {[%emt 0:00:00]} Ra8 {[%emt 0:00:00]} 48. Bc5 {[%emt 0:00:00]} g5 {[%emt 0:00:00]} 49. Kc4 {[%emt 0:00:00]} Bd6 {[%emt 0:00:00]} 50. Bxd6 {[%emt 0:00:00]} Ke6 {[%emt 0:00:00]} 51. Rf8 {[%emt 0:00:00]} Rxa7 {[%emt 0:00:00]} 52. Bc5 {[%emt 0:00:00]} Rg7 {[%emt 0:00:00]} 53. Bd4 {[%emt 0:00:00]} (53. Rxf6+ $142 Kd7 54. Ra6 Rg8 55. Kd5 Kc7 56. Ra7+ (56. Kxe4 g4 $18) 56... Kb8 57. Rf7 (57. Kxe4 Rc8 $18) 57... Rg6 58. Bd4 (58. Kxe4 g4 $18)) 53... Rg6 {[%emt 0:00:00]} 54. Re8+ {[%emt 0:00:00]} (54. Rxf6+ $142 Rxf6 55. Bxf6 Kxf6 56. Kd5 g4 57. Kxe4 Kg5 58. c4 Kg6 59. c5) 54... Kf5 {[%emt 0:00:00]} 55. Kd5 {[%emt 0:00:00]} Rg7 {[%emt 0:00:00]} 56. Rf8 {[%emt 0:00:00]} Rg6 {[%emt 0:00:00]} 57. Rxf6+ {[%emt 0:00:00]} Rxf6 {[%emt 0:00:00]} 58. Bxf6 {[%emt 0:00:00]} Kxf6 {[%emt 0:00:00]} 59. Kxe4 {[%emt 0:00:00]} Ke6 {[%emt 0:00:00]} 1-0

[Event "German Bundesliga 2024-25"]
[Site "Germany"]
[Date "2024.12.01"]
[Round "4.9"]
[White "Bogosavljevic, Boban"]
[Black "Navara, David"]
[Result "0-1"]
[Annotator "TA"]
[ECO "A40"]
[WhiteElo "2480"]
[BlackElo "2674"]
[PlyCount "58"]
[EventDate "2024.09.27"]
[EventType "team-tourn"]
[EventCountry "GER"]
[SourceTitle "playchess.com"]
[Source "ChessBase"]
[SourceQuality "1"]
[WhiteTeam "Deggendorf"]
[BlackTeam "Muelheim Nord"]
[TimeControl "40/5400+30:1800+30"]

{[%evp 9,58,7,20,16,0,0,0,0,0,0,0,-7,-4,-6,-2,0,-8,-16,-15,-25,-17,-22,-21,-39,-56,-67,-69,-50,-50,-58,-52,-51,-52,-49,-46,-274,-261,-273,-288,-295,-271,-335,-300,-359,-347,-366,-346,-577,-590,-616,-607]} 1. Nf3 {[%emt 0:00:07]} g6 {[%emt 0:00:04]} 2. g3 {[%emt 0:00:12]} Bg7 {[%emt 0:00:16]} 3. d4 {[%emt 0:00:07]} c5 {[%emt 0:00:06]} 4. c3 {[%emt 0:01:49]} Qa5 {[%emt 0:00:05]} 5. Nbd2 {[%emt 0:12:19]} cxd4 {[%emt 0:00:28]} 6. Nb3 {[%emt 0:00:27]} Qb6 {[%emt 0:02:08]} 7. cxd4 {[%emt 0:00:32]} Nf6 {[%emt 0:01:26]} 8. Bg2 {[%emt 0:00:33] The position is equal.} O-O {[%emt 0:03:17]} 9. O-O {[%emt 0:00:16]} d5 {[%emt 0:02:46]} 10. Bf4 {[%emt 0:11:16]} Bf5 {[%emt 0:04:14]} 11. Rc1 {[%emt 0:16:20]} Nc6 {[%emt 0:00:43]} 12. Ne5 {[%emt 0:00:17]} Rfc8 {[%emt 0:01:34]} 13. Nxc6 {[%emt 0:01:12]} Rxc6 {[%emt 0:00:14]} 14. Rxc6 {[%emt 0:07:01]} Qxc6 {[%emt 0:00:17]} 15. Qd2 {[%emt 0:04:05]} b6 {[%emt 0:03:46]} 16. Qb4 {[%emt 0:06:27]} a5 {[%emt 0:01:45]} 17. Qxe7 {[%emt 0:04:26]} Re8 {[%emt 0:00:15]} 18. Qa7 {[%emt 0:08:16]} Rxe2 {[%emt 0:00:27]} 19. Rc1 {[%emt 0:05:06]} Qe6 $36 {[%emt 0:10:28][%cal Oh7h6][%mdl 2048] White is under pressure.} (19... Qe8 {simplifies} 20. Qxb6 a4 21. Nd2 Ng4) 20. Qa8+ {[%emt 0:07:05]} Qe8 $1 {[%emt 0:06:07]} 21. Qxe8+ {[%emt 0:02:53]} Nxe8 {[%emt 0:00:04]} 22. Bf1 $2 {[%emt 0:03:32] [#] This costs White the game.} ({White should play} 22. Bxd5 $15 a4 23. Nd2 Bxd4 24. Rf1) 22... Rxb2 $19 {[%emt 0:00:44]} 23. Bb5 {[%emt 0:00:04]} Nf6 {[%emt 0:00:19]} 24. Rc6 {[%emt 0:00:50]} h5 {[%emt 0:08:05] White must now prevent ...Ng4.} (24... Rxa2 25. Rxb6 h6 26. f3 $17) 25. Rxb6 {[%emt 0:01:35]} Ng4 {[%emt 0:01:31]} (25... Rxa2 26. Rb8+ Kh7 27. Nc1 $19) 26. Bd2 {[%emt 0:02:49]} Rxa2 {[%emt 0:01:46] ...a4 is the strong threat.} 27. Rb8+ {[%emt 0:02:44]} Kh7 {[%emt 0:00:04] [#] Strongly threatening ...a4.} 28. Be8 {[%emt 0:00:16]} (28. h3 {keeps fighting.} Nf6 29. Bxa5) 28... a4 {[%emt 0:03:16]} 29. Bxf7 {[%emt 0:00:17]} Nf6 {[%emt 0:00:14] Prevents Bg8+.   Weighted Error Value: White=0.35/Black=0.03 (flawless) .  Loses game:     	White=1     	---        Mistake:       	White=1     	---        OK:         	White=6     	Black=10     Best:        	---       	Black=5      Strong:       	---       	Black=1} ({Weaker is} 29... axb3 30. Bg8+ Kh8 31. Be6+ (31. Bxd5+ Bf8 $11) 31... Kh7 32. Bg8+ Kh8 33. Be6+ (33. Bxd5+ Bf8 $11) 33... Kh7 34. Bg8+ $11) 0-1

[Event "German Bundesliga 2024-25"]
[Site "Germany"]
[Date "2024.12.01"]
[Round "4.10"]
[White "Bartel, Mateusz"]
[Black "Kasimdzhanov, Rustam"]
[Result "1/2-1/2"]
[Annotator "TA"]
[ECO "C50"]
[WhiteElo "2613"]
[BlackElo "2685"]
[PlyCount "42"]
[EventDate "2024.09.27"]
[EventType "team-tourn"]
[EventCountry "GER"]
[SourceTitle "playchess.com"]
[Source "ChessBase"]
[SourceQuality "1"]
[WhiteTeam "TU Dresden"]
[BlackTeam "Baden-Baden"]
[TimeControl "40/5400+30:1800+30"]

{[%evp 12,42,8,3,12,0,10,15,9,6,17,4,16,17,39,3,35,35,39,39,45,47,54,54,56,54,56,56,64,34,54,35,68]} 1. e4 {[%emt 0:00:03]} e5 {[%emt 0:00:06]} 2. Nf3 {[%emt 0:00:05]} Nc6 {[%emt 0:00:02]} 3. Bc4 {[%emt 0:00:07]} Nf6 {[%emt 0:00:03]} 4. d3 {[%emt 0:00:05]} Bc5 {[%emt 0:00:05]} 5. Nc3 {[%emt 0:00:03]} O-O {[%emt 0:01:59]} 6. O-O {[%emt 0:02:24]} h6 {[%emt 0:03:32]} 7. h3 {[%emt 0:01:16]} a6 {[%emt 0:01:40]} 8. Be3 {[%emt 0:00:07]} d6 {[%emt 0:00:23]} 9. Bxc5 {[%emt 0:02:02]} dxc5 {[%emt 0:00:11] The position is equal.} 10. a4 {[%emt 0:00:03]} Qd6 {[%emt 0:05:31]} 11. a5 {[%emt 0:08:26]} Ne7 {[%emt 0:08:50][%cal Bc6e7,Be7g6,Bg6f4][%mdl 32]} 12. Nd2 {[%emt 0:09:28][%cal Bf3d2,Bd2c4,Bc4e3][%mdl 32]} Ng6 {[%emt 0:08:32]} 13. Ba2 {[%emt 0:01:22]} Nf4 {[%emt 0:03:26]} 14. Nc4 {[%emt 0:02:13] White is slightly better.} Qe7 {[%emt 0:00:58]} 15. Ne3 {[%emt 0:00:10]} g6 {[%emt 0:08:44]} 16. h4 {[%emt 0:08:15]} Kg7 {[%emt 0:04:02]} 17. g3 {[%emt 0:00:32]} N4h5 {[%emt 0:00:58]} 18. Kg2 {[%emt 0:04:51]} Bd7 {[%emt 0:02:34]} 19. Qf3 {[%emt 0:08:48]} Rae8 {[%emt 0:01:49]} 20. Rh1 {[%emt 0:04:01] White is more active.} Qd8 {[%emt 0:06:35]} 21. Bb3 {[%emt 0:06:36]} Bc8 {[%emt 0:05:22] Weighted Error Value: White=0.09 (flawless) /Black=0.10 (very precise) .  Inaccurate:     	White=2     	Black=2      OK:         	White=6     	Black=2} 1/2-1/2